fUSD/lending_fUSD_20260207
["ID","MTS","AMOUNT","RATE_DAILY","PERIOD"]
[404735747,1770498639115,-185.51510198,0.000372,120]
[404735748,1770498639125,-185.51510198,0.000372,120]
[404735749,1770498639135,-185.51510198,0.000372,120]
[404735750,1770498639145,-450.0,0.00037316,5]
[404735751,1770498639155,-3202.58,0.000375,14]
[404735752,1770498639166,-3377.30057915,0.00037505,2]
[404735753,1770498639176,-397.56629257,0.00037708,5]
[404735754,1770498639185,-550.0,0.00037864,5]
[404735755,1770498639195,-507.0,0.00037881,8]
[404735756,1770498639204,-150.0,0.00037993,2]
[404735757,1770498639214,-150.0,0.00037993,2]
[404735758,1770498639224,-150.0,0.00037993,2]
[404735759,1770498639233,-150.0,0.00037993,2]
[404735760,1770498639243,-150.0,0.00037993,2]
[404735761,1770498639253,-150.0,0.00037993,2]
[404735762,1770498639263,-150.0,0.00037993,2]
[404735763,1770498639273,-150.0,0.00037993,2]
[404735764,1770498639282,-150.0,0.00037993,2]
[404735765,1770498639292,-150.0,0.00037993,2]
[404735766,1770498639302,-1411.0,0.00037993,2]
[404735767,1770498639311,-1335.0,0.00037993,2]
[404735768,1770498639321,-616.0,0.00037993,2]
[404735769,1770498639331,-3483.0,0.00037993,2]
[404735770,1770498639341,-1272.0,0.00037993,2]
[404735771,1770498639351,-1206.0,0.00037993,2]
[404735772,1770498639361,-917.0,0.00037993,2]
[404735773,1770498639371,-2447.0,0.00037993,2]
[404735774,1770498639380,-3255.0,0.00037993,2]
[404735775,1770498639390,-522.6,0.00038,30]
[404735776,1770498639399,-138889.14,0.00038,2]
[404735777,1770498639410,-2626.5514626,0.0003817,2]
[404735778,1770498639421,-168.0,0.0003827,7]
[404735779,1770498639433,-5888.0,0.00038373,7]
[404735780,1770498639443,-1309.0,0.00038406,2]
[404735781,1770498639452,-650.0,0.00038412,5]
[404735782,1770498639462,-161.17,0.00038498,2]
[404735783,1770498639472,-220.79,0.00038646,2]
[404735784,1770498639482,-168.0,0.00038648,2]
[404735785,1770498639492,-522.6,0.0003872,30]
[404735786,1770498639502,-1275.24572173,0.00038828,2]
[404735787,1770498639511,-1309.0,0.00038864,2]
[404735788,1770498639521,-4199.5928,0.00038888,30]
[404735789,1770498639531,-168.0,0.00038891,2]
[404735790,1770498639540,-150.0,0.00038905,2]
[404735791,1770498639550,-235.58915604,0.00038905,2]
[404735792,1770498639560,-150.0,0.00038905,2]
[404735793,1770498639570,-150.0,0.00038905,2]
[404735794,1770498639581,-500.0,0.00038905,2]
[404735795,1770498639591,-232.92340475,0.00038905,2]
[404735796,1770498639601,-150.0,0.00038905,2]
[404735797,1770498639611,-150.0,0.00038905,2]
[404735798,1770498639626,-205.83867613,0.00038905,2]
[404735799,1770498639636,-150.0,0.00038905,2]
[404735800,1770498639647,-500.0,0.00038905,2]
[404735801,1770498639658,-500.0,0.00038905,2]
[404735802,1770498639668,-500.0,0.00038905,2]
[404735803,1770498639678,-150.0,0.00038905,2]
[404735804,1770498639690,-500.0,0.00038905,2]
[404735805,1770498639700,-150.0,0.00038905,2]
[404735806,1770498639711,-150.0,0.00038905,2]
[404735807,1770498639720,-507.0,0.00038934,9]
[404735808,1770498639731,-150.0,0.0003896,2]
[404735809,1770498639741,-150.0,0.0003896,2]
[404735810,1770498639751,-150.0,0.0003896,2]
[404735811,1770498639761,-500.0,0.0003896,2]
[404735812,1770498639771,-150.0,0.0003896,2]
[404735813,1770498639781,-150.0,0.0003896,2]
[404735814,1770498639791,-500.0,0.0003896,2]
[404735815,1770498639801,-500.0,0.0003896,2]
[404735816,1770498639811,-500.0,0.0003896,2]
[404735817,1770498639820,-500.0,0.0003896,2]
[404735818,1770498639830,-150.0,0.0003896,2]
[404735819,1770498639840,-200.0,0.0003896,2]
[404735820,1770498639849,-532.17756489,0.0003896,5]
[404735821,1770498639859,-166.8633284,0.00039015,2]
[404735822,1770498639870,-150.0,0.00039015,2]
[404735823,1770498639880,-255.92941986,0.00039015,2]
[404735824,1770498639890,-150.0,0.00039015,2]
[404735825,1770498639899,-500.0,0.00039015,2]
[404735826,1770498639909,-500.0,0.00039015,2]
[404735827,1770498639919,-500.0,0.00039015,2]
[404735828,1770498639929,-500.0,0.00039015,2]
[404735829,1770498639938,-150.0,0.00039015,2]
[404735830,1770498639948,-3377.30057915,0.00039055,2]
[404735831,1770498639958,-200.0,0.00039069,2]
[404735832,1770498639968,-150.0,0.00039069,2]
[404735833,1770498639978,-150.0,0.00039069,2]
[404735834,1770498639988,-500.0,0.00039069,2]
[404735835,1770498639997,-150.0,0.00039069,2]
[404735836,1770498640007,-150.0,0.00039069,2]
[404735837,1770498640016,-215.61991293,0.00039069,2]
[404735838,1770498640026,-500.0,0.00039069,2]
[404735839,1770498640036,-150.0,0.00039069,2]
[404735840,1770498640045,-150.0,0.00039069,2]
[404735841,1770498640055,-208.43558998,0.00039069,2]
[404735842,1770498640064,-150.0,0.00039069,2]
[404735843,1770498640074,-500.0,0.00039069,2]
[404735844,1770498640084,-500.0,0.00039069,2]
[404735845,1770498640094,-500.0,0.00039069,2]
[404735846,1770498640104,-500.0,0.00039069,2]
[404735847,1770498640113,-150.0,0.00039069,2]
[404735848,1770498640123,-6532.3340174,0.00039077,2]
[404735849,1770498640132,-500.0,0.00039099,30]
[404735850,1770498640141,-200.0,0.00039124,2]
[404735851,1770498640151,-150.0,0.00039124,2]
[404735852,1770498640161,-150.0,0.00039124,2]
[404735853,1770498640170,-501.95201777,0.00039124,2]
[404735854,1770498640180,-150.0,0.00039124,2]
[404735855,1770498640189,-150.0,0.00039124,2]
[404735856,1770498640199,-500.0,0.00039124,2]
[404735857,1770498640209,-150.0,0.00039124,2]
[404735858,1770498640219,-150.0,0.00039124,2]
[404735859,1770498640229,-500.0,0.00039124,2]
[404735860,1770498640239,-500.0,0.00039124,2]
[404735861,1770498640249,-500.0,0.00039124,2]
[404735862,1770498640259,-500.0,0.00039124,2]
[404735863,1770498640268,-150.0,0.00039124,2]
[404735864,1770498640279,-500.0,0.00039178,2]
[404735865,1770498640289,-200.0,0.00039179,2]
[404735866,1770498640298,-200.7490249,0.00039179,2]
[404735867,1770498640308,-150.0,0.00039179,2]
[404735868,1770498640317,-221.24334971,0.00039179,2]
[404735869,1770498640326,-250.0,0.00039179,2]
[404735870,1770498640336,-500.0,0.00039179,2]
[404735871,1770498640347,-150.0,0.00039179,2]
[404735872,1770498640357,-150.0,0.00039179,2]
[404735873,1770498640368,-500.0,0.00039179,2]
[404735874,1770498640379,-500.0,0.00039179,2]
[404735875,1770498640388,-500.0,0.00039179,2]
[404735876,1770498640398,-500.0,0.00039179,2]
[404735878,1770498640409,-177.48360594,0.00039179,2]
[404735879,1770498640420,-1309.0,0.0003919,120]
[404735880,1770498640430,-3753.7,0.000392,30]
[404735881,1770498640439,-200.0,0.00039233,2]
[404735882,1770498640450,-150.0,0.00039233,2]
[404735883,1770498640460,-500.0,0.00039233,2]
[404735884,1770498640469,-208.63867507,0.00039233,2]
[404735885,1770498640479,-150.0,0.00039233,2]
[404735886,1770498640489,-500.0,0.00039234,2]
[404735887,1770498640499,-500.0,0.00039234,2]
[404735888,1770498640508,-500.0,0.00039234,2]
[404735889,1770498640518,-359.9595705,0.00039234,2]
[404735890,1770498640528,-200.0,0.00039288,2]
[404735891,1770498640537,-261.1146881,0.00039288,2]
[404735892,1770498640547,-500.0,0.00039288,2]
[404735893,1770498640557,-150.0,0.00039288,2]
[404735894,1770498640567,-500.0,0.00039289,2]
[404735895,1770498640577,-233.76578302,0.00039289,2]
[404735896,1770498640587,-500.0,0.00039289,2]
[404735897,1770498640597,-1309.0,0.00039334,2]
[404735898,1770498640607,-200.0,0.00039343,2]
[404735899,1770498640619,-500.0,0.00039343,2]
[404735900,1770498640629,-243.99521436,0.00039343,2]
[404735901,1770498640639,-500.0,0.00039343,2]
[404735902,1770498640649,-500.0,0.00039343,2]
[404735903,1770498640659,-200.0,0.00039398,2]
[404735904,1770498640669,-500.0,0.00039398,2]
[404735905,1770498640679,-500.0,0.00039398,2]
[404735906,1770498640690,-500.0,0.00039398,2]
[404735907,1770498640700,-5888.0,0.00039411,2]
[404735908,1770498640708,-522.6,0.0003944,30]
[404735909,1770498640718,-200.0,0.00039453,2]
[404735910,1770498640726,-500.0,0.00039453,2]
[404735911,1770498640735,-172.65020243,0.00039453,2]
[404735912,1770498640744,-500.0,0.00039453,2]
[404735913,1770498640754,-150.0,0.00039464,2]
[404735914,1770498640766,-150.0,0.00039464,2]
[404735915,1770498640776,-196.90645506,0.00039464,2]
[404735916,1770498640786,-200.0,0.00039507,2]
[404735917,1770498640797,-500.0,0.00039507,2]
[404735918,1770498640808,-630.57749269,0.00039508,2]
[404735919,1770498640819,-200.0,0.00039562,2]
[404735920,1770498640829,-500.0,0.00039562,2]
[404735921,1770498640839,-200.0,0.00039617,2]
[404735922,1770498640850,-500.0,0.00039617,2]
[404735923,1770498640861,-200.0,0.00039672,2]
[404735924,1770498640870,-500.0,0.00039672,2]
[404735925,1770498640884,-200.0,0.00039727,2]
[404735926,1770498640895,-500.0,0.00039727,2]
[404735927,1770498640906,-300.0,0.00039762,2]
[404735928,1770498640916,-300.0,0.00039762,2]
[404735929,1770498640927,-852.68208559,0.00039762,2]
[404735930,1770498640936,-305.02115314,0.00039762,2]
[404735931,1770498640946,-881.38175827,0.00039762,2]
[404735932,1770498640955,-300.0,0.00039762,2]
[404735933,1770498640965,-300.0,0.00039762,2]
[404735934,1770498640975,-300.0,0.00039762,2]
[404735935,1770498640984,-300.0,0.00039762,2]
[404735936,1770498640995,-300.0,0.00039762,2]
[404735937,1770498641005,-300.0,0.00039762,2]
[404735938,1770498641016,-457.17696299,0.00039762,2]
[404735939,1770498641027,-300.0,0.00039762,2]
[404735940,1770498641038,-300.0,0.00039762,2]
[404735941,1770498641048,-370.09797997,0.00039762,2]
[404735942,1770498641063,-300.0,0.00039762,2]
[404735943,1770498641073,-300.0,0.00039762,2]
[404735944,1770498641082,-300.0,0.00039762,2]
[404735945,1770498641091,-300.0,0.00039762,2]
[404735946,1770498641101,-300.0,0.00039762,2]
[404735947,1770498641110,-516.79047855,0.00039762,2]
[404735948,1770498641119,-305.17533586,0.00039762,2]
[404735949,1770498641129,-300.0,0.00039762,2]
[404735950,1770498641138,-300.0,0.00039762,2]
[404735951,1770498641147,-300.0,0.00039762,2]
[404735952,1770498641156,-300.0,0.00039762,2]
[404735953,1770498641166,-300.0,0.00039762,2]
[404735954,1770498641177,-571.85515654,0.00039762,2]
[404735955,1770498641189,-300.0,0.00039762,2]
[404735956,1770498641199,-300.0,0.00039762,2]
[404735957,1770498641211,-300.0,0.00039762,2]
[404735958,1770498641220,-300.0,0.00039762,2]
[404735959,1770498641230,-300.0,0.00039762,2]
[404735960,1770498641240,-852.68208559,0.00039762,2]
[404735961,1770498641251,-305.02115314,0.00039762,2]
[404735962,1770498641262,-881.38175827,0.00039762,2]
[404735963,1770498641275,-300.0,0.00039762,2]
[404735964,1770498641287,-300.0,0.00039762,2]
[404735965,1770498641298,-300.0,0.00039762,2]
[404735966,1770498641309,-300.0,0.00039762,2]
[404735967,1770498641321,-300.0,0.00039762,2]
[404735968,1770498641332,-306.19819169,0.00039762,2]
[404735969,1770498641342,-300.0,0.00039762,2]
[404735970,1770498641352,-300.0,0.00039762,2]
[404735971,1770498641363,-457.17696299,0.00039762,2]
[404735972,1770498641373,-300.0,0.00039762,2]
[404735973,1770498641624,-300.0,0.00039762,2]
[404735974,1770498641634,-300.0,0.00039762,2]
[404735975,1770498641643,-300.0,0.00039762,2]
[404735976,1770498641653,-370.09797997,0.00039762,2]
[404735977,1770498641663,-300.0,0.00039762,2]
[404735978,1770498641672,-300.0,0.00039762,2]
[404735979,1770498641682,-1309.0,0.00039765,7]
[404735980,1770498641694,-200.0,0.00039781,2]
[404735981,1770498641703,-319.79604183,0.00039781,2]
[404735982,1770498641713,-3202.58,0.000398,14]
[404735983,1770498641723,-200.0,0.00039836,2]
[404735984,1770498641732,-200.0,0.00039891,2]
[404735985,1770498641742,-138889.14,0.000399,2]
[404735986,1770498641751,-201.42236302,0.00039946,2]
[404735987,1770498641760,-507.0,0.00039987,11]
[404735988,1770498641770,-686.45,0.0004,120]
[404735989,1770498641779,-1686.11,0.0004,120]
[404735990,1770498641789,-1124.06,0.0004,120]
[404735991,1770498641798,-590.76,0.0004,120]
[404735992,1770498641807,-571.91,0.0004,120]
[404735993,1770498641816,-250.0,0.0004,45]
[404735994,1770498641826,-250.0,0.0004,45]
[404735995,1770498641835,-151.0,0.0004,120]
[404735996,1770498641844,-154.0,0.0004,120]
[404735997,1770498641853,-317.86740044,0.0004,2]
[404735998,1770498641863,-1000.0,0.0004,60]
[404735999,1770498641873,-284.88597226,0.0004,60]
[404736000,1770498641882,-1309.0,0.00040036,2]
[404736001,1770498641891,-5888.0,0.00040263,2]
[404736002,1770498641904,-2000.0,0.000404,2]
[404736003,1770498641915,-300.080508,0.00040407,100]
[404736004,1770498641926,-168.0,0.00040411,2]
[404736005,1770498641935,-250.0,0.000405,45]
[404736006,1770498641947,-3753.7,0.000405,30]
[404736007,1770498641959,-1309.0,0.00040588,120]
[404736008,1770498641970,-3377.30057915,0.00040605,2]
[404736009,1770498641980,-151.0,0.000407,120]
[404736010,1770498641991,-168.0,0.00040722,2]
[404736011,1770498642001,-154.0,0.000409,120]
[404736012,1770498642012,-150.0,0.00040993,2]
[404736013,1770498642023,-150.0,0.00040993,2]
[404736014,1770498642034,-150.0,0.00040993,2]
[404736015,1770498642045,-150.0,0.00040993,2]
[404736016,1770498642055,-150.0,0.00040993,2]
[404736017,1770498642067,-150.0,0.00040993,2]
[404736018,1770498642077,-1411.0,0.00040993,2]
[404736019,1770498642090,-1335.0,0.00040993,2]
[404736020,1770498642100,-616.0,0.00040993,2]
[404736021,1770498642110,-3483.0,0.00040993,2]
[404736022,1770498642120,-1272.0,0.00040993,2]
[404736023,1770498642131,-1206.0,0.00040993,2]
[404736024,1770498642143,-917.0,0.00040993,2]
[404736025,1770498642154,-2447.0,0.00040993,2]
[404736026,1770498642164,-3255.0,0.00040993,2]
[404736027,1770498642174,-250.0,0.00041,45]
[404736028,1770498642184,-8571.11742085,0.00041,30]
[404736029,1770498642195,-160.0,0.00041,30]
[404736030,1770498642205,-160.0,0.00041,30]
[404736031,1770498642216,-168.0,0.00041033,2]
[404736032,1770498642225,-507.0,0.0004104,12]
[404736033,1770498642235,-300.0,0.00041068,22]
[404736034,1770498642246,-2999.0,0.00041096,30]
[404736035,1770498642255,-168.0,0.00041143,2]
[404736036,1770498642265,-177.51,0.000412,14]
[404736037,1770498642275,-565.66,0.00041308,30]
[404736038,1770498642288,-165.74,0.00041346,2]
[404736039,1770498642298,-5888.0,0.00041367,120]
[404736040,1770498642308,-151.0,0.000414,120]
[404736041,1770498642318,-168.0,0.00041405,2]
[404736042,1770498642329,-152.24,0.00041408,120]
[404736043,1770498642340,-250.0,0.000415,45]
[404736044,1770498642349,-152.24,0.00041508,120]
[404736045,1770498642361,-3202.58,0.000416,14]
[404736046,1770498642372,-138889.14,0.000416,2]
[404736047,1770498642382,-152.24,0.00041608,120]
[404736048,1770498642393,-154.0,0.000417,120]
[404736049,1770498642403,-152.24,0.00041708,120]
[404736050,1770498642414,-168.0,0.00041728,2]
[404736051,1770498642425,-3753.7,0.000418,30]
[404736052,1770498642435,-200.0,0.00041805,6]
[404736053,1770498642446,-152.24,0.00041808,120]
[404736054,1770498642459,-168.0,0.0004185,2]
[404736055,1770498642472,-5888.0,0.00041882,7]
[404736056,1770498642483,-152.24,0.00041908,120]
[404736057,1770498642493,-1309.0,0.00041934,2]
[404736058,1770498642503,-2000.0,0.00042,120]
[404736059,1770498642512,-160.0,0.00042,120]
[404736060,1770498642523,-152.24,0.00042008,120]
[404736061,1770498642532,-200.0,0.00042026,6]
[404736062,1770498642542,-200.0,0.0004205,4]
[404736063,1770498642552,-1309.0,0.0004206,7]
[404736064,1770498642562,-507.0,0.00042093,13]
[404736065,1770498642572,-151.0,0.000421,120]
[404736066,1770498642582,-200.0,0.000421,22]
[404736067,1770498642594,-152.24,0.00042108,120]
[404736068,1770498642604,-3377.30057915,0.00042154,2]
[404736069,1770498642616,-152.24,0.00042208,120]
[404736070,1770498642627,-1309.0,0.00042211,7]
[404736071,1770498642637,-152.24,0.00042308,120]
[404736072,1770498642648,-6532.3340174,0.00042387,15]
[404736073,1770498642663,-177.51,0.000424,14]
[404736074,1770498642674,-500.0,0.00042438,120]
[404736075,1770498642685,-500.0,0.00042438,120]
[404736076,1770498642696,-20000.0,0.00042466,120]
[404736077,1770498642706,-5800.0,0.0004247,14]
[404736078,1770498642717,-5800.0,0.00042479,14]
[404736079,1770498642726,-5800.0,0.00042487,14]
[404736080,1770498642736,-5800.0,0.00042495,14]
[404736081,1770498642746,-151.0,0.00042497,14]
[404736082,1770498642755,-5800.0,0.00042504,14]
[404736083,1770498642764,-5800.0,0.00042513,14]
[404736084,1770498642774,-5800.0,0.00042521,14]
[404736085,1770498642784,-5800.0,0.0004253,14]
[404736086,1770498642795,-5800.0,0.00042538,14]
[404736087,1770498642807,-17321.79655322,0.00042538,15]
[404736088,1770498642817,-500.0,0.00042575,120]
[404736089,1770498642826,-500.0,0.00042575,120]
[404736090,1770498642836,-154.0,0.000426,120]
[404736091,1770498642846,-410.3886224,0.00042616,30]
[404736092,1770498642859,-151.0,0.000427,120]
[404736093,1770498642868,-500.0,0.00042712,120]
[404736094,1770498642879,-500.0,0.00042712,120]
[404736095,1770498642889,-8863.0,0.00042773,30]
[404736096,1770498642900,-500.0,0.000428,120]
[404736097,1770498642909,-515.94894661,0.0004282,7]
[404736098,1770498642919,-500.0,0.0004282,2]
[404736099,1770498642928,-500.0,0.00042849,120]
[404736100,1770498642937,-500.0,0.00042986,120]
[404736101,1770498642947,-300.0,0.00042999,30]
[404736102,1770498642956,-300.0,0.00042999,30]
[404736103,1770498642966,-160.0,0.00043,120]
[404736104,1770498642976,-3753.7,0.00043,30]
[404736105,1770498642987,-499.99999901,0.00043,120]
[404736106,1770498642998,-206.0,0.00043,30]
[404736107,1770498643008,-165.0,0.00043,90]
[404736108,1770498643019,-611.0,0.00043,30]
[404736109,1770498643028,-985.0,0.00043,30]
[404736110,1770498643039,-165.0,0.00043,90]
[404736111,1770498643049,-308.0,0.00043,30]
[404736112,1770498643059,-300.0,0.00043012,30]
[404736113,1770498643068,-237.98717,0.00043012,120]
[404736114,1770498643077,-156.34644,0.00043012,120]
[404736115,1770498643087,-156.34644,0.00043012,120]
[404736116,1770498643096,-161.898318,0.00043012,120]
[404736117,1770498643107,-151.0,0.00043012,120]
[404736118,1770498643118,-151.0,0.00043012,120]
[404736119,1770498643129,-156.34644,0.00043012,120]
[404736120,1770498643139,-151.0,0.00043012,120]
[404736121,1770498643148,-151.0,0.00043012,120]
[404736122,1770498643158,-156.34644,0.00043012,120]
[404736123,1770498643167,-151.0,0.00043012,120]
[404736124,1770498643177,-151.0,0.00043012,120]
[404736125,1770498643187,-213.455521,0.00043012,14]
[404736126,1770498643198,-151.0,0.00043012,120]
[404736127,1770498643208,-213.455521,0.00043012,14]
[404736128,1770498643219,-151.553988,0.00043012,60]
[404736129,1770498643228,-151.0,0.00043012,120]
[404736130,1770498643238,-151.0,0.00043012,120]
[404736131,1770498643247,-213.455521,0.00043012,14]
[404736132,1770498643256,-151.0,0.00043012,31]
[404736133,1770498643266,-342.781069,0.00043012,120]
[404736134,1770498643276,-213.455521,0.00043012,14]
[404736135,1770498643286,-151.0,0.00043012,31]
[404736136,1770498643295,-342.781069,0.00043012,120]
[404736137,1770498643304,-151.0,0.00043012,120]
[404736138,1770498643314,-151.0,0.00043012,31]
[404736139,1770498643324,-342.781069,0.00043012,120]
[404736140,1770498643335,-151.0,0.00043012,120]
[404736141,1770498643345,-151.0,0.00043012,120]
[404736142,1770498643355,-342.781069,0.00043012,120]
[404736143,1770498643364,-151.0,0.00043012,120]
[404736144,1770498643374,-315.218312,0.00043012,120]
[404736145,1770498643384,-151.0,0.00043012,120]
[404736146,1770498643393,-315.218312,0.00043012,120]
[404736147,1770498643402,-151.0,0.00043012,120]
[404736148,1770498643412,-315.218312,0.00043012,120]
[404736149,1770498643421,-268.681911,0.00043012,120]
[404736150,1770498643431,-315.218312,0.00043012,120]
[404736151,1770498643440,-151.0,0.00043012,120]
[404736152,1770498643450,-157.311487,0.00043012,120]
[404736153,1770498643459,-763.254105,0.00043012,7]
[404736154,1770498643469,-763.254105,0.00043012,7]
[404736155,1770498643478,-763.254105,0.00043012,7]
[404736156,1770498643487,-763.254105,0.00043012,7]
[404736157,1770498643497,-206.616138,0.00043012,120]
[404736158,1770498643506,-206.616138,0.00043012,120]
[404736159,1770498643515,-206.616138,0.00043012,120]
[404736160,1770498643524,-206.616138,0.00043012,120]
[404736161,1770498643532,-300.0,0.00043013,30]
[404736162,1770498643541,-1000.0,0.00043014,30]
[404736163,1770498643550,-300.0,0.00043122,30]
[404736164,1770498643559,-500.0,0.00043123,120]
[404736165,1770498643568,-300.0,0.00043143,30]
[404736166,1770498643578,-1113.28784887,0.00043144,120]
[404736167,1770498643588,-507.0,0.00043146,14]
[404736168,1770498643598,-3202.58,0.000432,14]
[404736169,1770498643607,-300.0,0.00043213,30]
[404736170,1770498643620,-8863.0,0.00043214,30]
[404736172,1770498643629,-300.0,0.0004322,30]
[404736174,1770498643639,-201.064279,0.0004322,120]
[404736176,1770498643648,-151.0,0.0004322,120]
[404736178,1770498643659,-183.542462,0.0004322,120]
[404736180,1770498643668,-214.195702,0.0004322,120]
[404736182,1770498643678,-214.195702,0.0004322,120]
[404736184,1770498643687,-151.0,0.0004322,120]
[404736186,1770498643700,-151.0,0.0004322,120]
[404736188,1770498643709,-214.195702,0.0004322,120]
[404736190,1770498643719,-151.0,0.0004322,120]
[404736192,1770498643729,-214.195702,0.0004322,120]
[404736193,1770498643738,-151.0,0.0004322,120]
[404736194,1770498643747,-151.0,0.0004322,120]
[404736195,1770498643756,-164.254243,0.0004322,120]
[404736196,1770498643766,-420.43703,0.0004322,120]
[404736197,1770498643776,-151.0,0.0004322,120]
[404736198,1770498643785,-420.43703,0.0004322,120]
[404736199,1770498643796,-152.384454,0.0004322,120]
[404736200,1770498643807,-151.0,0.0004322,90]
[404736201,1770498643817,-420.43703,0.0004322,120]
[404736202,1770498643828,-168.125608,0.0004322,120]
[404736203,1770498643838,-151.0,0.0004322,120]
[404736204,1770498643850,-242.366115,0.0004322,120]
[404736205,1770498643860,-151.0,0.0004322,90]
[404736206,1770498643871,-420.43703,0.0004322,120]
[404736207,1770498643881,-151.0,0.0004322,120]
[404736208,1770498643892,-973.61836415,0.00043221,120]
[404736209,1770498643901,-500.0,0.0004326,120]
[404736210,1770498643910,-1000.0,0.00043288,30]
[404736211,1770498643919,-417.66694136,0.00043327,14]
[404736212,1770498643928,-500.0,0.00043397,120]
[404736213,1770498643938,-5893.53044716,0.000434,2]
[404736214,1770498643947,-1188.33269675,0.000434,2]
[404736215,1770498643956,-151.0,0.000434,120]
[404736216,1770498643966,-154.0,0.000434,120]
[404736217,1770498643975,-1064.32287,0.000434,120]
[404736218,1770498643984,-1064.32287,0.000434,120]
[404736219,1770498643994,-1064.32287,0.000434,120]
[404736220,1770498644080,-1064.32287,0.000434,120]
[404736221,1770498644091,-1064.32287,0.000434,120]
[404736222,1770498644100,-637.0,0.000435,120]
[404736223,1770498644110,-200.0,0.00043526,9]
[404736224,1770498644119,-393.60076631,0.00043534,120]
[404736225,1770498644128,-1000.0,0.00043562,30]
[404736226,1770498644138,-8863.0,0.00043655,30]
[404736227,1770498644147,-150.0,0.00043676,120]
[404736228,1770498644156,-155.94692329,0.00043676,120]
[404736229,1770498644165,-1000.0,0.00043699,14]
[404736230,1770498644175,-3377.30057915,0.00043704,2]
[404736231,1770498644184,-150.0,0.00043723,120]
[404736232,1770498644193,-223.84420756,0.00043734,120]
[404736233,1770498644203,-185.51510198,0.00043735,120]
[404736234,1770498644212,-193.31012055,0.00043744,7]
[404736235,1770498644222,-202.63046957,0.00043751,120]
[404736236,1770498644231,-661391.0597454,0.00043754,2]
[404736237,1770498644240,-12762.6778977,0.00043754,2]
[404736238,1770498644249,-308927.8368185,0.00043754,2]
[404736239,1770498644258,-2516.0208389,0.00043754,2]
[404736240,1770498644267,-724.4423226,0.00043754,2]
[404736241,1770498644276,-2654.4396873,0.00043754,2]
[404736242,1770498644285,-116767.8263601,0.00043754,2]
[404736243,1770498644295,-151.0,0.00043754,120]
[404736244,1770498644304,-151.0,0.00043754,120]
[404736245,1770498644313,-151.0,0.00043754,120]
[404736246,1770498644323,-151.0,0.00043754,120]
[404736247,1770498644332,-151.0,0.00043754,120]
[404736248,1770498644341,-151.0,0.00043754,120]
[404736249,1770498644351,-151.0,0.00043754,120]
[404736250,1770498644360,-151.0,0.00043754,120]
[404736251,1770498644370,-151.0,0.00043754,120]
[404736252,1770498644380,-159.234161,0.00043754,120]
[404736253,1770498644391,-153.783266,0.00043754,120]
[404736254,1770498644400,-151.0,0.00043754,120]
[404736255,1770498644410,-151.0,0.00043754,120]
[404736256,1770498644419,-151.0,0.00043754,14]
[404736257,1770498644430,-151.0,0.00043754,120]
[404736258,1770498644440,-151.0,0.00043754,14]